[Event "Betsys MČR v online bleskovém šachu 2021"]
[Site "Chess.com"]
[Date "2021.04.17"]
[Round "3"]
[White "FBingoPlayer"]
[Black "Rognort"]
[Result "0-1"]
[WhiteElo "2187"]
[BlackElo "1803"]
[TimeControl "180+1"]
[EndTime "9:27:57 PDT"]
[Termination "Uživatel Rognort zvítězil na čas"]

1. Nc3 {[%clk 0:03:00.9]} 1... d5 {[%clk 0:02:53.3]} 2. e4 {[%clk 0:03:00.7]}
2... d4 {[%clk 0:02:49.1]} 3. Nce2 {[%clk 0:03:00.5]} 3... e5 {[%clk 0:02:49.2]}
4. Ng3 {[%clk 0:03:00.6]} 4... c5 {[%clk 0:02:49.1]} 5. Bc4 {[%clk 0:03:00]}
5... Nc6 {[%clk 0:02:45]} 6. Nf3 {[%clk 0:03:00]} 6... Bg4 {[%clk 0:02:40.6]} 7.
h3 {[%clk 0:02:58.5]} 7... Be6 {[%clk 0:02:40.6]} 8. Bxe6 {[%clk 0:02:53.9]}
8... fxe6 {[%clk 0:02:41.5]} 9. d3 {[%clk 0:02:53.8]} 9... Nf6 {[%clk
0:02:37.6]} 10. O-O {[%clk 0:02:53.4]} 10... h6 {[%clk 0:02:37.7]} 11. Nh4
{[%clk 0:02:48]} 11... Qc7 {[%clk 0:02:11.5]} 12. Ng6 {[%clk 0:02:45]} 12... Rg8
{[%clk 0:02:11.6]} 13. f4 {[%clk 0:02:40.3]} 13... Bd6 {[%clk 0:02:07.9]} 14. f5
{[%clk 0:02:32.9]} 14... exf5 {[%clk 0:02:03.5]} 15. Nxf5 {[%clk 0:02:27.3]}
15... O-O-O {[%clk 0:02:01.1]} 16. Bd2 {[%clk 0:02:26.9]} 16... Ne7 {[%clk
0:01:52.3]} 17. Ngxe7+ {[%clk 0:02:08.7]} 17... Bxe7 {[%clk 0:01:53.2]} 18. Qf3
{[%clk 0:01:57.1]} 18... Rdf8 {[%clk 0:01:44]} 19. Qg3 {[%clk 0:01:45.4]} 19...
Bd8 {[%clk 0:01:17.6]} 20. Rf2 {[%clk 0:01:37.2]} 20... Ne8 {[%clk 0:00:51.9]}
21. Raf1 {[%clk 0:01:32]} 21... Bf6 {[%clk 0:00:50.9]} 22. a3 {[%clk 0:01:23.2]}
22... Nd6 {[%clk 0:00:42.6]} 23. Nxh6 {[%clk 0:01:18.4]} 23... gxh6 {[%clk
0:00:40.3]} 24. Rxf6 {[%clk 0:00:39.5]} 24... Rxg3 {[%clk 0:00:36.4]} 25. Rxf8+
{[%clk 0:00:39.6]} 25... Kd7 {[%clk 0:00:36.9]} 26. Rh8 {[%clk 0:00:37.5]} 26...
Kc6 {[%clk 0:00:28.9]} 27. Rxh6 {[%clk 0:00:36.7]} 27... Qg7 {[%clk 0:00:27.7]}
28. Rf2 {[%clk 0:00:33.2]} 28... Kc7 {[%clk 0:00:22.2]} 29. Kh2 {[%clk 0:00:32]}
29... Rg6 {[%clk 0:00:21.1]} 30. Rh5 {[%clk 0:00:29.2]} 30... Nf7 {[%clk
0:00:20.3]} 31. b4 {[%clk 0:00:20.9]} 31... b6 {[%clk 0:00:19.9]} 32. bxc5
{[%clk 0:00:19.7]} 32... bxc5 {[%clk 0:00:20.8]} 33. Rhf5 {[%clk 0:00:18.2]}
33... Nh6 {[%clk 0:00:19.4]} 34. Rf8 {[%clk 0:00:18]} 34... Rxg2+ {[%clk
0:00:11.6]} 35. Rxg2 {[%clk 0:00:15.7]} 35... Qxf8 {[%clk 0:00:11.9]} 36. Ba5+
{[%clk 0:00:10.5]} 36... Kc6 {[%clk 0:00:10.4]} 37. Bd2 {[%clk 0:00:11.4]} 37...
Kb5 {[%clk 0:00:09.3]} 38. c3 {[%clk 0:00:09.5]} 38... dxc3 {[%clk 0:00:08.5]}
39. Bxc3 {[%clk 0:00:10.1]} 39... Nf7 {[%clk 0:00:09.3]} 40. Rb2+ {[%clk
0:00:09.5]} 40... Kc6 {[%clk 0:00:09.1]} 41. a4 {[%clk 0:00:09.2]} 41... Qg7
{[%clk 0:00:07.6]} 42. Rg2 {[%clk 0:00:08.8]} 42... Qh6 {[%clk 0:00:07.8]} 43.
Bd2 {[%clk 0:00:08.1]} 43... Qh4 {[%clk 0:00:07.2]} 44. Be3 {[%clk 0:00:08.1]}
44... Nd6 {[%clk 0:00:05.7]} 45. Rg6 {[%clk 0:00:06]} 45... Qe1 {[%clk
0:00:05.8]} 46. Bg5 {[%clk 0:00:04.7]} 46... Qe2+ {[%clk 0:00:05.7]} 47. Kg3
{[%clk 0:00:04.5]} 47... Qxd3+ {[%clk 0:00:05.2]} 48. Kg4 {[%clk 0:00:04]} 48...
c4 {[%clk 0:00:05.6]} 49. Be7 {[%clk 0:00:01.7]} 49... c3 {[%clk 0:00:05]} 0-1

[Event "Betsys MČR v online bleskovém šachu 2021"]
[Site "Chess.com"]
[Date "2021.04.17"]
[Round "3"]
[White "EDA16"]
[Black "121pepa"]
[Result "0-1"]
[WhiteElo "922"]
[BlackElo "1417"]
[TimeControl "180+1"]
[EndTime "9:27:57 PDT"]
[Termination "Uživatel 121pepa zvítězil na čas"]

1. d4 {[%clk 0:03:00.9]} 1... Nf6 {[%clk 0:02:54.7]} 2. c4 {[%clk 0:02:59.6]}
2... g6 {[%clk 0:02:47.8]} 3. Nc3 {[%clk 0:02:59.1]} 3... Bg7 {[%clk 0:02:46.5]}
4. Bg5 {[%clk 0:02:58.5]} 4... O-O {[%clk 0:02:43.6]} 5. e3 {[%clk 0:02:57.7]}
5... d6 {[%clk 0:02:39.9]} 6. Bd3 {[%clk 0:02:57]} 6... Na6 {[%clk 0:02:28.1]}
7. Nf3 {[%clk 0:02:55]} 7... c5 {[%clk 0:02:24.3]} 8. d5 {[%clk 0:02:51.7]} 8...
Nc7 {[%clk 0:02:22.8]} 9. Qc2 {[%clk 0:02:47.8]} 9... a6 {[%clk 0:02:21.6]} 10.
O-O {[%clk 0:02:44.8]} 10... Rb8 {[%clk 0:02:19.9]} 11. Rfe1 {[%clk 0:02:43.6]}
11... Bd7 {[%clk 0:02:19]} 12. Re2 {[%clk 0:02:43.1]} 12... Qe8 {[%clk
0:02:14.6]} 13. Rae1 {[%clk 0:02:42]} 13... b5 {[%clk 0:02:13.4]} 14. cxb5
{[%clk 0:02:40.3]} 14... axb5 {[%clk 0:02:13]} 15. Bxf6 {[%clk 0:02:34.6]} 15...
Bxf6 {[%clk 0:02:11.7]} 16. Ne4 {[%clk 0:02:32.8]} 16... Bg7 {[%clk 0:02:08.3]}
17. a3 {[%clk 0:02:31.3]} 17... Nxd5 {[%clk 0:02:04.5]} 18. b4 {[%clk
0:02:26.3]} 18... c4 {[%clk 0:02:04]} 19. Bxc4 {[%clk 0:02:14.1]} 19... bxc4
{[%clk 0:02:03.3]} 20. Qxc4 {[%clk 0:02:12.5]} 20... Nb6 {[%clk 0:02:02.4]} 21.
Qc2 {[%clk 0:01:57.2]} 21... Bf5 {[%clk 0:01:57.1]} 22. Nh4 {[%clk 0:01:44.7]}
22... Rc8 {[%clk 0:01:44.8]} 23. Qb1 {[%clk 0:01:40.1]} 23... Be6 {[%clk
0:01:37.3]} 24. Ng5 {[%clk 0:01:29.9]} 24... Bc4 {[%clk 0:01:32]} 25. Rc2 {[%clk
0:01:24.3]} 25... Bd3 {[%clk 0:01:31.4]} 26. Rxc8 {[%clk 0:01:19.7]} 26... Bxb1
{[%clk 0:01:22.9]} 27. Rxe8 {[%clk 0:01:17.7]} 27... Rxe8 {[%clk 0:01:22]} 28.
Rxb1 {[%clk 0:01:17.2]} 28... Bf6 {[%clk 0:01:22]} 29. Ngf3 {[%clk 0:01:14.5]}
29... e6 {[%clk 0:01:19.8]} 30. Ra1 {[%clk 0:01:10]} 30... g5 {[%clk 0:01:18.5]}
31. Rc1 {[%clk 0:01:01.8]} 31... gxh4 {[%clk 0:01:16.9]} 32. h3 {[%clk 0:01:01]}
32... Rc8 {[%clk 0:01:15.2]} 33. Rxc8+ {[%clk 0:00:57.9]} 33... Nxc8 {[%clk
0:01:14.4]} 34. a4 {[%clk 0:00:57.4]} 34... Bc3 {[%clk 0:01:10.5]} 35. b5 {[%clk
0:00:56]} 35... Nb6 {[%clk 0:01:10.3]} 36. Nd4 {[%clk 0:00:53.2]} 36... Bxd4
{[%clk 0:01:09.1]} 37. exd4 {[%clk 0:00:52.5]} 37... Nxa4 {[%clk 0:01:08.6]} 38.
Kf1 {[%clk 0:00:49.9]} 38... f5 {[%clk 0:01:09]} 39. Ke2 {[%clk 0:00:49]} 39...
Kf7 {[%clk 0:01:09.1]} 40. Kd3 {[%clk 0:00:48.5]} 40... e5 {[%clk 0:01:08.4]}
41. d5 {[%clk 0:00:42.1]} 41... Nb6 {[%clk 0:01:04.8]} 42. Kc3 {[%clk
0:00:32.5]} 42... f4 {[%clk 0:01:01.4]} 43. Kb4 {[%clk 0:00:30.6]} 43... Nxd5+
{[%clk 0:01:00.3]} 44. Ka5 {[%clk 0:00:29.9]} 44... Kf6 {[%clk 0:00:57.1]} 45.
b6 {[%clk 0:00:29.7]} 45... Nxb6 {[%clk 0:00:56.4]} 46. Kxb6 {[%clk 0:00:29]}
46... e4 {[%clk 0:00:56.4]} 47. Kc6 {[%clk 0:00:27.7]} 47... Ke5 {[%clk
0:00:55.9]} 48. Kb5 {[%clk 0:00:24.7]} 48... Kd4 {[%clk 0:00:54.2]} 49. Kc6
{[%clk 0:00:23]} 49... d5 {[%clk 0:00:53.5]} 50. Kb5 {[%clk 0:00:20]} 50... Kc3
{[%clk 0:00:52.7]} 51. Kc5 {[%clk 0:00:19.6]} 51... d4 {[%clk 0:00:52.3]} 52.
Kd5 {[%clk 0:00:18.2]} 52... d3 {[%clk 0:00:52.2]} 53. Kxe4 {[%clk 0:00:17.8]}
53... d2 {[%clk 0:00:51.7]} 54. Kxf4 {[%clk 0:00:16.4]} 54... d1=Q {[%clk
0:00:52]} 55. Kg5 {[%clk 0:00:14.3]} 55... Qd5+ {[%clk 0:00:48.8]} 56. Kxh4
{[%clk 0:00:12.6]} 56... Qxg2 {[%clk 0:00:47.8]} 57. f4 {[%clk 0:00:09.3]} 57...
Kd4 {[%clk 0:00:42]} 58. Kh5 {[%clk 0:00:07.4]} 58... Qg6+ {[%clk 0:00:40.3]}
59. Kh4 {[%clk 0:00:06.4]} 59... Ke4 {[%clk 0:00:31.9]} 0-1

[Event "Betsys MČR v online bleskovém šachu 2021"]
[Site "Chess.com"]
[Date "2021.04.17"]
[Round "3"]
[White "FaceOfLightning"]
[Black "indebol"]
[Result "1-0"]
[WhiteElo "1933"]
[BlackElo "1546"]
[TimeControl "180+1"]
[EndTime "9:28:04 PDT"]
[Termination "Uživatel FaceOfLightning zvítězil matem"]

1. Nf3 {[%clk 0:03:00.9]} 1... c5 {[%clk 0:02:45.8]} 2. g3 {[%clk 0:02:58]} 2...
d5 {[%clk 0:02:45.2]} 3. Bg2 {[%clk 0:02:58]} 3... Nc6 {[%clk 0:02:45.7]} 4. d3
{[%clk 0:02:56.2]} 4... Nf6 {[%clk 0:02:43.4]} 5. O-O {[%clk 0:02:55.5]} 5... e6
{[%clk 0:02:43.5]} 6. Qe1 {[%clk 0:02:50]} 6... Be7 {[%clk 0:02:41.8]} 7. e4
{[%clk 0:02:49.2]} 7... dxe4 {[%clk 0:02:37.8]} 8. dxe4 {[%clk 0:02:48.1]} 8...
Qc7 {[%clk 0:02:35.4]} 9. e5 {[%clk 0:02:34.4]} 9... Nd5 {[%clk 0:02:34.1]} 10.
Nc3 {[%clk 0:02:30]} 10... Nxc3 {[%clk 0:02:27.4]} 11. Qxc3 {[%clk 0:02:29]}
11... b6 {[%clk 0:02:27.8]} 12. Bf4 {[%clk 0:02:25.9]} 12... O-O {[%clk
0:02:23.6]} 13. a3 {[%clk 0:02:11.1]} 13... Bb7 {[%clk 0:02:23.4]} 14. Rfe1
{[%clk 0:02:09.2]} 14... Rad8 {[%clk 0:02:19.4]} 15. Rad1 {[%clk 0:02:07.4]}
15... Rd7 {[%clk 0:02:11.5]} 16. Rxd7 {[%clk 0:01:56.1]} 16... Qxd7 {[%clk
0:02:12.4]} 17. Ng5 {[%clk 0:01:52.2]} 17... h6 {[%clk 0:02:00.5]} 18. Ne4
{[%clk 0:01:51.1]} 18... Rd8 {[%clk 0:01:48.5]} 19. Nd6 {[%clk 0:01:47.7]} 19...
Na5 {[%clk 0:01:25.6]} 20. Rd1 {[%clk 0:01:36.7]} 20... Bxg2 {[%clk 0:01:15.5]}
21. Kxg2 {[%clk 0:01:36.8]} 21... Qc6+ {[%clk 0:01:12.8]} 22. Kg1 {[%clk
0:01:27.3]} 22... Nb7 {[%clk 0:01:02.3]} 23. Qd3 {[%clk 0:01:24.8]} 23... f6
{[%clk 0:00:49.3]} 24. Qg6 {[%clk 0:01:24]} 24... Nxd6 {[%clk 0:00:34.5]} 25.
exd6 {[%clk 0:01:13.1]} 25... Bf8 {[%clk 0:00:34.1]} 26. h4 {[%clk 0:00:41.8]}
26... e5 {[%clk 0:00:31.1]} 27. Bxh6 {[%clk 0:00:40.8]} 27... Rxd6 {[%clk
0:00:31.5]} 28. Re1 {[%clk 0:00:37.4]} 28... Qd5 {[%clk 0:00:25.9]} 29. Be3
{[%clk 0:00:30.2]} 29... e4 {[%clk 0:00:23.2]} 30. h5 {[%clk 0:00:28.6]} 30...
f5 {[%clk 0:00:22.7]} 31. Qe8 {[%clk 0:00:27.6]} 31... Qe6 {[%clk 0:00:20.7]}
32. Qa8 {[%clk 0:00:24.5]} 32... Kf7 {[%clk 0:00:19.8]} 33. Qxa7+ {[%clk
0:00:21.5]} 33... Rd7 {[%clk 0:00:20.2]} 34. Qb8 {[%clk 0:00:20.5]} 34... Qh6
{[%clk 0:00:19.3]} 35. Bxh6 {[%clk 0:00:19.2]} 35... gxh6 {[%clk 0:00:18.9]} 36.
Qxb6 {[%clk 0:00:18.5]} 36... Rd2 {[%clk 0:00:16.3]} 37. Qg6+ {[%clk 0:00:17.9]}
37... Ke7 {[%clk 0:00:14.3]} 38. Qxf5 {[%clk 0:00:17.1]} 38... Rxc2 {[%clk
0:00:14.2]} 39. Qxe4+ {[%clk 0:00:16.5]} 39... Kd8 {[%clk 0:00:13.8]} 40. Qxc2
{[%clk 0:00:16.5]} 40... Bd6 {[%clk 0:00:13.4]} 41. Rd1 {[%clk 0:00:15.8]} 41...
Kc7 {[%clk 0:00:14.3]} 42. Qg6 {[%clk 0:00:14.9]} 42... Be5 {[%clk 0:00:13.5]}
43. Qf7+ {[%clk 0:00:13.7]} 43... Kc6 {[%clk 0:00:12.2]} 44. Qd7+ {[%clk
0:00:13.5]} 44... Kb6 {[%clk 0:00:12.1]} 45. a4 {[%clk 0:00:12.7]} 45... Bd4
{[%clk 0:00:12]} 46. Qb5+ {[%clk 0:00:12]} 46... Kc7 {[%clk 0:00:11.2]} 47. a5
{[%clk 0:00:12.2]} 47... Kd6 {[%clk 0:00:11.7]} 48. Qb6+ {[%clk 0:00:12.2]}
48... Kd5 {[%clk 0:00:12.2]} 49. a6 {[%clk 0:00:12.4]} 49... c4 {[%clk
0:00:13.1]} 50. Qb5+ {[%clk 0:00:11]} 50... Ke4 {[%clk 0:00:14]} 51. Qxc4 {[%clk
0:00:10.6]} 51... Ke5 {[%clk 0:00:12.9]} 52. Qxd4+ {[%clk 0:00:10]} 52... Ke6
{[%clk 0:00:12]} 53. Qc5 {[%clk 0:00:10]} 53... Kf6 {[%clk 0:00:12.9]} 54. Rd6+
{[%clk 0:00:09.8]} 54... Ke7 {[%clk 0:00:13.8]} 55. Qc7+ {[%clk 0:00:09.9]}
55... Ke8 {[%clk 0:00:13]} 56. Rd8# {[%clk 0:00:09.8]} 1-0

[Event "Betsys MČR v online bleskovém šachu 2021"]
[Site "Chess.com"]
[Date "2021.04.17"]
[Round "3"]
[White "Hroch-hroch"]
[Black "stripe122"]
[Result "1-0"]
[WhiteElo "2276"]
[BlackElo "1789"]
[TimeControl "180+1"]
[EndTime "9:28:05 PDT"]
[Termination "Uživatel Hroch-hroch zvítězil po vzdání soupeře"]

1. e4 {[%clk 0:03:00.9]} 1... c5 {[%clk 0:02:58.4]} 2. Nf3 {[%clk 0:02:59.6]}
2... d6 {[%clk 0:02:57.7]} 3. d4 {[%clk 0:02:59.4]} 3... cxd4 {[%clk 0:02:57.2]}
4. Nxd4 {[%clk 0:02:59.9]} 4... Nf6 {[%clk 0:02:56.4]} 5. Nc3 {[%clk 0:03:00.3]}
5... g6 {[%clk 0:02:55.8]} 6. f4 {[%clk 0:02:59.4]} 6... Nc6 {[%clk 0:02:53.1]}
7. Nxc6 {[%clk 0:02:58.5]} 7... bxc6 {[%clk 0:02:52.6]} 8. e5 {[%clk 0:02:59]}
8... dxe5 {[%clk 0:02:39]} 9. Qxd8+ {[%clk 0:02:57.1]} 9... Kxd8 {[%clk
0:02:38.4]} 10. fxe5 {[%clk 0:02:57]} 10... Nd5 {[%clk 0:02:37.5]} 11. Nxd5
{[%clk 0:02:48.9]} 11... cxd5 {[%clk 0:02:35.6]} 12. Bf4 {[%clk 0:02:48.5]}
12... e6 {[%clk 0:02:29]} 13. O-O-O {[%clk 0:02:41]} 13... Bb7 {[%clk 0:02:19]}
14. Kb1 {[%clk 0:02:26.8]} 14... Bc5 {[%clk 0:02:16.3]} 15. c4 {[%clk 0:02:21]}
15... Kc7 {[%clk 0:02:12.7]} 16. cxd5 {[%clk 0:02:19.2]} 16... Bxd5 {[%clk
0:02:11]} 17. Rc1 {[%clk 0:02:06.8]} 17... Kb6 {[%clk 0:02:10.2]} 18. h4 {[%clk
0:01:35.3]} 18... Rac8 {[%clk 0:01:57.9]} 19. Rh3 {[%clk 0:01:28.7]} 19... Be7
{[%clk 0:01:52.7]} 20. Be3+ {[%clk 0:01:06.4]} 20... Kb7 {[%clk 0:01:49.8]} 21.
a3 {[%clk 0:00:51.5]} 21... h5 {[%clk 0:01:40]} 22. Bg5 {[%clk 0:00:40.6]} 22...
Bxg5 {[%clk 0:01:26.9]} 23. hxg5 {[%clk 0:00:39.3]} 23... Be4+ {[%clk
0:01:12.7]} 24. Bd3 {[%clk 0:00:31.1]} 24... Bxg2 {[%clk 0:01:11.2]} 25. Rh2
{[%clk 0:00:25.6]} 25... Bd5 {[%clk 0:01:05.9]} 26. Rxc8 {[%clk 0:00:21.7]}
26... Rxc8 {[%clk 0:01:03.8]} 27. Rf2 {[%clk 0:00:21.3]} 27... Rc7 {[%clk
0:00:57.4]} 28. Rf4 {[%clk 0:00:21]} 28... Kb6 {[%clk 0:00:51.8]} 29. b4 {[%clk
0:00:17.9]} 29... Rc3 {[%clk 0:00:45.7]} 30. Bc2 {[%clk 0:00:18]} 30... Rc7
{[%clk 0:00:39.5]} 31. Kb2 {[%clk 0:00:18]} 31... Kb7 {[%clk 0:00:34.3]} 32. a4
{[%clk 0:00:17.9]} 32... Kc8 {[%clk 0:00:33.7]} 33. Bd3 {[%clk 0:00:17.2]} 33...
Kd8 {[%clk 0:00:30.7]} 34. a5 {[%clk 0:00:17.4]} 34... Rb7 {[%clk 0:00:25.3]}
35. Ka3 {[%clk 0:00:15.7]} 35... Ke8 {[%clk 0:00:24.8]} 36. b5 {[%clk
0:00:13.5]} 36... Rc7 {[%clk 0:00:23.1]} 37. Kb4 {[%clk 0:00:13.6]} 37... Rc1
{[%clk 0:00:21]} 38. b6 {[%clk 0:00:12.9]} 38... axb6 {[%clk 0:00:20.3]} 39.
axb6 {[%clk 0:00:12.1]} 39... Rb1+ {[%clk 0:00:20.4]} 40. Kc5 {[%clk 0:00:12.1]}
40... Rc1+ {[%clk 0:00:18.8]} 41. Kd4 {[%clk 0:00:10.3]} 41... Rc6 {[%clk
0:00:17.1]} 42. Bb5 {[%clk 0:00:08.9]} 42... Kd7 {[%clk 0:00:16.9]} 43. Rxf7+
{[%clk 0:00:07.8]} 43... Kc8 {[%clk 0:00:14.9]} 44. Bxc6 {[%clk 0:00:07.6]}
44... Bxc6 {[%clk 0:00:14.9]} 45. Kc5 {[%clk 0:00:07.5]} 45... Bd5 {[%clk
0:00:13.8]} 46. Rg7 {[%clk 0:00:07.3]} 46... Be4 {[%clk 0:00:12.1]} 47. b7+
{[%clk 0:00:07.1]} 47... Bxb7 {[%clk 0:00:11.3]} 48. Rxg6 {[%clk 0:00:07.2]}
48... Bd5 {[%clk 0:00:11.4]} 49. Rh6 {[%clk 0:00:06.9]} 49... Bf3 {[%clk
0:00:10.1]} 50. Rh7 {[%clk 0:00:06.2]} 50... Bg4 {[%clk 0:00:08.8]} 51. Kd6
{[%clk 0:00:06]} 51... Kb8 {[%clk 0:00:06.7]} 52. g6 {[%clk 0:00:06.2]} 52...
Bf5 {[%clk 0:00:04.8]} 53. Rh8+ {[%clk 0:00:05.9]} 53... Kb7 {[%clk 0:00:04.5]}
54. g7 {[%clk 0:00:06.4]} 1-0

[Event "Betsys MČR v online bleskovém šachu 2021"]
[Site "Chess.com"]
[Date "2021.04.17"]
[Round "3"]
[White "Sandokanom"]
[Black "ghostdog777"]
[Result "0-1"]
[WhiteElo "1769"]
[BlackElo "2179"]
[TimeControl "180+1"]
[EndTime "9:28:05 PDT"]
[Termination "Uživatel ghostdog777 zvítězil po vzdání soupeře"]

1. c4 {[%clk 0:03:00.9]} 1... c6 {[%clk 0:02:58.1]} 2. Nc3 {[%clk 0:03:00.8]}
2... d5 {[%clk 0:02:58.8]} 3. cxd5 {[%clk 0:03:00.6]} 3... cxd5 {[%clk 0:02:59]}
4. d4 {[%clk 0:03:01.5]} 4... Nc6 {[%clk 0:02:55.2]} 5. a3 {[%clk 0:03:01.6]}
5... g6 {[%clk 0:02:53.7]} 6. Nf3 {[%clk 0:03:01.7]} 6... Bg7 {[%clk 0:02:53.8]}
7. e3 {[%clk 0:02:55.5]} 7... Nf6 {[%clk 0:02:52.1]} 8. Bb5 {[%clk 0:02:54.3]}
8... Bd7 {[%clk 0:02:51.9]} 9. O-O {[%clk 0:02:52.5]} 9... O-O {[%clk
0:02:51.5]} 10. Re1 {[%clk 0:02:52.3]} 10... a6 {[%clk 0:02:50.7]} 11. Bd3
{[%clk 0:02:51.6]} 11... b5 {[%clk 0:02:50.2]} 12. h3 {[%clk 0:02:47]} 12... Qb6
{[%clk 0:02:48.7]} 13. Ne5 {[%clk 0:02:39.9]} 13... Be6 {[%clk 0:02:43.4]} 14.
f4 {[%clk 0:02:26.3]} 14... Nxe5 {[%clk 0:02:38.2]} 15. fxe5 {[%clk 0:02:27.2]}
15... Nd7 {[%clk 0:02:38.1]} 16. Qf3 {[%clk 0:02:18.9]} 16... Qb7 {[%clk
0:02:35.8]} 17. e4 {[%clk 0:02:13.8]} 17... Nb6 {[%clk 0:02:32.5]} 18. Bg5
{[%clk 0:02:03.3]} 18... Rad8 {[%clk 0:02:26.2]} 19. Rac1 {[%clk 0:01:50]} 19...
Qd7 {[%clk 0:02:11.5]} 20. Red1 {[%clk 0:01:42]} 20... dxe4 {[%clk 0:02:01.2]}
21. Bxe4 {[%clk 0:01:42.9]} 21... Bb3 {[%clk 0:01:53.5]} 22. Rd3 {[%clk
0:01:32.4]} 22... Bc4 {[%clk 0:00:49.2]} 23. Rd2 {[%clk 0:01:28]} 23... Rc8
{[%clk 0:00:48.9]} 24. Bf4 {[%clk 0:01:10]} 24... Rfd8 {[%clk 0:00:44.5]} 25. d5
{[%clk 0:01:05.7]} 25... Qa7 {[%clk 0:00:40.8]} 26. Kh2 {[%clk 0:00:59.4]} 26...
e6 {[%clk 0:00:37]} 27. d6 {[%clk 0:00:56.6]} 27... Nd7 {[%clk 0:00:35.6]} 28.
Qg3 {[%clk 0:00:46.5]} 28... Qc5 {[%clk 0:00:31.8]} 29. b4 {[%clk 0:00:41.8]}
29... Qa7 {[%clk 0:00:25.5]} 30. Bf3 {[%clk 0:00:39.3]} 30... h6 {[%clk
0:00:22.1]} 31. h4 {[%clk 0:00:37.4]} 31... Rf8 {[%clk 0:00:15.4]} 32. Ne4
{[%clk 0:00:34.8]} 32... f5 {[%clk 0:00:12.8]} 33. exf6 {[%clk 0:00:32.6]} 33...
Nxf6 {[%clk 0:00:13]} 34. Nxf6+ {[%clk 0:00:31.4]} 34... Rxf6 {[%clk 0:00:12.6]}
35. Be5 {[%clk 0:00:29.4]} 35... Qf7 {[%clk 0:00:12.3]} 36. Bxf6 {[%clk
0:00:28.3]} 36... Bxf6 {[%clk 0:00:12.5]} 37. d7 {[%clk 0:00:28]} 37... Rd8
{[%clk 0:00:12.6]} 38. Re1 {[%clk 0:00:24.6]} 38... Kg7 {[%clk 0:00:13]} 39.
Red1 {[%clk 0:00:22.5]} 39... Qe7 {[%clk 0:00:13.4]} 40. Bc6 {[%clk 0:00:21.6]}
40... Bxh4 {[%clk 0:00:13]} 41. Qe3 {[%clk 0:00:20.8]} 41... Bg5 {[%clk
0:00:12.6]} 42. Qe2 {[%clk 0:00:19.9]} 42... Bf6 {[%clk 0:00:13.5]} 43. Qe3
{[%clk 0:00:18.6]} 43... Bg5 {[%clk 0:00:13.1]} 44. Qf2 {[%clk 0:00:18.4]} 44...
Bf6 {[%clk 0:00:13.2]} 45. Bb7 {[%clk 0:00:14.6]} 45... Bg5 {[%clk 0:00:12.9]}
46. Rd4 {[%clk 0:00:14]} 46... Bf6 {[%clk 0:00:12.5]} 47. R4d2 {[%clk
0:00:13.5]} 47... e5 {[%clk 0:00:12.2]} 48. g3 {[%clk 0:00:12.3]} 48... Be6
{[%clk 0:00:11.8]} 49. Bxa6 {[%clk 0:00:12.2]} 49... Bg4 {[%clk 0:00:11.6]} 50.
Re1 {[%clk 0:00:11.6]} 50... e4 {[%clk 0:00:12]} 51. Bxb5 {[%clk 0:00:11.6]}
51... Bf3 {[%clk 0:00:11.8]} 52. Re3 {[%clk 0:00:10.7]} 52... Qe5 {[%clk
0:00:12.3]} 53. Rxf3 {[%clk 0:00:10.4]} 53... exf3 {[%clk 0:00:12]} 54. Qxf3
{[%clk 0:00:10.7]} 54... Qxb5 {[%clk 0:00:12.1]} 55. Rf2 {[%clk 0:00:10]} 55...
Qb6 {[%clk 0:00:10.9]} 56. Re2 {[%clk 0:00:08.8]} 56... Rxd7 {[%clk 0:00:10.5]}
57. Re7+ {[%clk 0:00:08.3]} 57... Rxe7 {[%clk 0:00:10.3]} 0-1

[Event "Betsys MČR v online bleskovém šachu 2021"]
[Site "Chess.com"]
[Date "2021.04.17"]
[Round "3"]
[White "Koli05"]
[Black "Gicko13"]
[Result "1-0"]
[WhiteElo "1778"]
[BlackElo "2038"]
[TimeControl "180+1"]
[EndTime "9:28:05 PDT"]
[Termination "Uživatel Koli05 zvítězil na čas"]

1. d4 {[%clk 0:03:00.9]} 1... d5 {[%clk 0:02:59.6]} 2. c4 {[%clk 0:02:59.8]}
2... e6 {[%clk 0:02:59.4]} 3. Nc3 {[%clk 0:02:59.4]} 3... Nf6 {[%clk 0:02:59.1]}
4. cxd5 {[%clk 0:02:59]} 4... exd5 {[%clk 0:02:59.6]} 5. Bg5 {[%clk 0:02:58.5]}
5... Be7 {[%clk 0:02:59.4]} 6. e3 {[%clk 0:02:58.3]} 6... O-O {[%clk 0:02:57.6]}
7. Bd3 {[%clk 0:02:57.4]} 7... c6 {[%clk 0:02:57.8]} 8. Nge2 {[%clk 0:02:57]}
8... Nbd7 {[%clk 0:02:55.1]} 9. O-O {[%clk 0:02:56.6]} 9... Re8 {[%clk
0:02:54.7]} 10. f3 {[%clk 0:02:56.3]} 10... Nf8 {[%clk 0:02:43.5]} 11. Bh4
{[%clk 0:02:55.3]} 11... b5 {[%clk 0:02:30.6]} 12. a3 {[%clk 0:02:53.1]} 12...
a5 {[%clk 0:02:04.3]} 13. Qc2 {[%clk 0:02:47.8]} 13... Ng6 {[%clk 0:02:02.3]}
14. Bf2 {[%clk 0:02:46.1]} 14... Bb7 {[%clk 0:01:52.1]} 15. Rad1 {[%clk
0:02:33.1]} 15... Bf8 {[%clk 0:01:27.3]} 16. b3 {[%clk 0:02:02.1]} 16... Bxa3
{[%clk 0:01:18.1]} 17. e4 {[%clk 0:01:50.7]} 17... dxe4 {[%clk 0:01:04.6]} 18.
fxe4 {[%clk 0:01:49.7]} 18... Ng4 {[%clk 0:01:04.5]} 19. h3 {[%clk 0:01:31]}
19... Nxf2 {[%clk 0:01:03.9]} 20. Rxf2 {[%clk 0:01:30.4]} 20... Be7 {[%clk
0:01:02.8]} 21. Rdf1 {[%clk 0:01:26.7]} 21... Rf8 {[%clk 0:00:59.2]} 22. Nd1
{[%clk 0:01:14]} 22... Bg5 {[%clk 0:00:51.4]} 23. Rf5 {[%clk 0:01:08.3]} 23...
Bc8 {[%clk 0:00:42.9]} 24. R5f2 {[%clk 0:01:05.7]} 24... Bd7 {[%clk 0:00:41.9]}
25. Qc5 {[%clk 0:01:02]} 25... Be7 {[%clk 0:00:38.8]} 26. Qc2 {[%clk 0:01:00.9]}
26... a4 {[%clk 0:00:38.5]} 27. bxa4 {[%clk 0:00:58]} 27... bxa4 {[%clk
0:00:39.4]} 28. Ndc3 {[%clk 0:00:55.4]} 28... a3 {[%clk 0:00:36.9]} 29. Na2
{[%clk 0:00:53.8]} 29... Bg5 {[%clk 0:00:35.9]} 30. Kh1 {[%clk 0:00:48.6]} 30...
Be7 {[%clk 0:00:19.4]} 31. Bc4 {[%clk 0:00:47.9]} 31... Be6 {[%clk 0:00:17.4]}
32. Bxe6 {[%clk 0:00:47.4]} 32... fxe6 {[%clk 0:00:18.3]} 33. Qxc6 {[%clk
0:00:47]} 33... Qc8 {[%clk 0:00:17]} 34. Rxf8+ {[%clk 0:00:45.8]} 34... Nxf8
{[%clk 0:00:16.4]} 35. Rc1 {[%clk 0:00:42.9]} 35... Qxc6 {[%clk 0:00:13.8]} 36.
Rxc6 {[%clk 0:00:42.4]} 36... Rb8 {[%clk 0:00:14.2]} 37. Rc7 {[%clk 0:00:35.8]}
37... Bf6 {[%clk 0:00:12.9]} 38. e5 {[%clk 0:00:34.4]} 38... Bd8 {[%clk
0:00:12.5]} 39. Ra7 {[%clk 0:00:32]} 39... Rb2 {[%clk 0:00:12.2]} 40. Nec3
{[%clk 0:00:31.7]} 40... Rd2 {[%clk 0:00:11.6]} 41. Rxa3 {[%clk 0:00:29.8]}
41... Rxd4 {[%clk 0:00:11.2]} 42. Ra8 {[%clk 0:00:29]} 42... Be7 {[%clk
0:00:09.6]} 43. Re8 {[%clk 0:00:26]} 43... Kf7 {[%clk 0:00:09.2]} 44. Ra8 {[%clk
0:00:24.7]} 44... Rd3 {[%clk 0:00:07.5]} 45. Nb5 {[%clk 0:00:19.8]} 45... Rd5
{[%clk 0:00:05.2]} 46. Nbc3 {[%clk 0:00:18.2]} 46... Rxe5 {[%clk 0:00:05.5]} 47.
Ra7 {[%clk 0:00:16.8]} 47... Kf6 {[%clk 0:00:04.7]} 48. Kh2 {[%clk 0:00:16]}
48... Bd6 {[%clk 0:00:04.8]} 49. g3 {[%clk 0:00:15.5]} 49... Re1 {[%clk
0:00:04.9]} 50. Kg2 {[%clk 0:00:15.2]} 50... Re3 {[%clk 0:00:04.6]} 51. g4
{[%clk 0:00:13.7]} 51... Rg3+ {[%clk 0:00:04.5]} 52. Kf2 {[%clk 0:00:13.6]}
52... Rxh3 {[%clk 0:00:05]} 53. Ne4+ {[%clk 0:00:13.1]} 1-0